bitfinex/quotes_ETHUSD_20260312
["timestamp","ask_amount","ask_price","bid_price","bid_amount"]
[1773303119955,2.36822547,2039.9,2039.3,1.08356554]
[1773303120356,0.002,2040.0,2039.5,1.08356554]
[1773303120555,2.37017214,2040.0,2039.5,1.08356554]
[1773303120774,1.14266975,2039.9,2039.5,1.08356554]
[1773303121177,0.002,2040.0,2039.5,1.08356554]
[1773303121575,0.002,2040.0,2039.6,1.08356554]
[1773303121774,1.14466975,2040.0,2039.6,1.08356554]
[1773303123398,1.14466975,2040.0,2039.4,5.57123144]
[1773303123399,1.14466975,2040.0,2039.4,2.30937067]
[1773303123570,1.14466975,2040.0,2039.4,1.08356554]
[1773303123571,1.14266975,2039.8,2039.4,1.08356554]
[1773303124695,1.14266975,2039.9,2039.4,1.08356554]
[1773303125494,1.22558665,2039.9,2039.4,2.30940866]
[1773303125662,1.14266975,2039.8,2039.4,2.30940866]
[1773303125859,1.14266975,2039.8,2039.4,1.08356554]
[1773303126376,1.14266975,2039.8,2039.5,0.001]
[1773303126566,2.3702047,2040.0,2039.5,1.08456554]
[1773303126764,1.14266975,2039.9,2039.5,1.08456554]
[1773303127656,1.14266975,2039.8,2039.5,1.08456554]
[1773303128892,1.14266975,2039.8,2039.5,0.001]
[1773303129994,2.36829225,2039.8,2039.5,0.001]
[1773303130586,1.14266975,2039.9,2039.5,0.001]
[1773303130784,1.14266975,2039.9,2039.5,1.08456554]
[1773303132202,1.22561035,2039.8,2039.5,1.08456554]
[1773303132409,1.22561035,2039.8,2039.5,0.001]
[1773303132410,2.3682801,2039.8,2039.5,0.001]
[1773303132775,1.14266975,2039.8,2039.5,0.001]
[1773303133873,1.14466975,2040.0,2039.6,1.08356554]
[1773303134189,2.37016198,2040.0,2039.6,1.08356554]
[1773303137309,1.14266975,2039.9,2039.6,1.08356554]
[1773303137722,0.002,2040.0,2039.6,2.30927887]
[1773303137884,1.14466975,2040.0,2039.6,2.30927887]
[1773303138410,1.14466975,2040.0,2039.8,0.001]
[1773303142090,2.37016508,2040.0,2039.8,0.001]
[1773303142614,1.12368046,2039.9,2039.8,0.001]
[1773303145122,1.12568046,2040.0,2039.8,0.001]
[1773303145329,2.35117368,2040.0,2039.8,0.001]
[1773303145556,2.35117267,2040.0,2039.8,0.001]
[1773303145843,2.35117474,2040.0,2039.8,0.001]
[1773303146930,1.12368046,2039.9,2039.8,0.001]
[1773303148152,2.34923073,2039.9,2039.8,0.001]
[1773303148307,1.12368046,2039.8,2039.5,0.001]
[1773303148842,1.12368046,2039.8,2039.5,0.77385145]
[1773303150312,1.12368046,2039.7,2039.5,0.001]
[1773303151129,1.12368046,2039.9,2039.5,2.00102221]
[1773303151338,0.002,2040.0,2039.7,0.001]
[1773303151629,0.002,2039.8,2039.7,0.001]
[1773303154245,1.12568046,2039.8,2039.7,0.001]
[1773303156144,0.002,2039.8,2039.7,0.001]
[1773303156324,0.002,2039.8,2039.7,0.77870783]
[1773303159647,0.002,2039.8,2039.7,0.001]
[1773303164855,1.15871976,2039.8,2039.7,0.001]
[1773303165753,1.15871976,2039.8,2039.5,0.001]
[1773303165970,1.15671976,2039.7,2039.5,0.001]
[1773303168258,1.15671976,2039.6,2039.5,0.001]
[1773303171693,0.002,2039.8,2039.2,0.79055222]
[1773303171694,1.16983101,2039.5,2039.2,0.79055222]
[1773303171847,2.39553569,2039.7,2039.2,0.79055222]
[1773303172032,1.16983101,2039.7,2039.2,0.79055222]
[1773303172559,1.16983101,2039.7,2039.3,0.79108232]
[1773303173760,0.002,2039.8,2039.3,0.79108232]
[1773303174063,1.17183101,2039.8,2039.3,0.79108232]
[1773303175676,2.39744461,2039.8,2039.4,0.79263971]
[1773303175877,1.17183101,2039.8,2039.4,0.79263971]
[1773303176782,2.39744664,2039.8,2039.4,0.79263971]
[1773303177082,2.39744664,2039.8,2039.5,0.001]
[1773303177284,0.002,2039.6,2039.5,0.001]
[1773303180183,1.17183101,2039.6,2039.5,0.001]
[1773303180357,1.17183101,2039.6,2039.3,0.001]
[1773303180674,1.17183101,2039.6,2039.3,0.79714492]
[1773303180872,0.002,2039.6,2039.3,0.79714492]
[1773303182777,0.002,2039.6,2039.3,2.02397131]
[1773303183185,0.002,2039.6,2039.3,2.02397542]
[1773303185159,0.002,2039.6,2039.3,0.79810176]
[1773303185361,1.17183101,2039.6,2039.3,0.79810176]
[1773303186010,1.17183101,2039.6,2039.3,0.001]
[1773303187073,1.17183101,2039.6,2039.3,0.79994766]
[1773303188588,1.17183101,2039.6,2039.3,2.02585181]
[1773303189691,0.002,2039.6,2039.4,0.80029589]
[1773303189887,0.002,2039.6,2039.5,0.001]
[1773303190801,1.17183101,2039.6,2039.5,0.001]
[1773303194002,0.002,2039.6,2039.5,0.001]
[1773303197077,1.17183101,2039.6,2039.5,0.001]
[1773303199512,1.17183101,2039.6,2039.1,0.79594652]
[1773303199802,1.16983101,2039.4,2038.9,0.79594652]
[1773303200375,0.002,2039.6,2039.0,0.79499158]
[1773303201007,0.002,2039.6,2039.2,0.79403111]
[1773303202111,0.002,2039.6,2039.3,0.79307982]
[1773303203680,0.002,2039.6,2039.4,0.001]
[1773303204807,1.14640674,2039.6,2039.4,0.001]
[1773303207185,0.002,2039.8,2039.5,0.78850462]
[1773303209282,0.002,2039.8,2039.5,2.01426987]
[1773303210309,0.002,2039.8,2039.6,0.78588382]
[1773303212421,0.002,2039.8,2039.6,2.01161301]
[1773303212711,0.002,2039.8,2039.7,0.7833531]
[1773303213277,0.002,2040.1,2040.0,0.7833531]
[1773303213481,0.002,2040.2,2040.0,0.7833531]
[1773303215507,1.14640674,2040.2,2039.8,0.77889507]
[1773303217317,1.14640674,2040.2,2039.9,0.001]
[1773303217723,1.14440674,2040.1,2039.9,0.001]
[1773303218023,1.14640674,2040.1,2039.9,0.001]
[1773303220831,0.002,2040.1,2039.9,0.7760005]
[1773303223306,1.12644196,2040.1,2039.9,0.001]
[1773303224809,1.12444196,2040.0,2039.9,0.001]
[1773303231813,1.12444196,2040.0,2039.7,0.77022591]
[1773303232026,1.09738177,2039.9,2039.4,0.76689402]
[1773303232624,1.09738177,2039.9,2039.4,1.9927439]
[1773303232943,1.09738177,2040.0,2039.5,0.76524745]
[1773303235037,1.09738177,2039.9,2039.5,1.9910305]
[1773303235735,1.09738177,2039.9,2039.5,0.76524745]
[1773303237037,1.09738177,2039.9,2039.4,1.22680415]
[1773303237536,1.09738177,2039.8,2039.4,0.001]
[1773303238841,1.09738177,2039.8,2039.3,1.93957909]
[1773303239042,2.32299614,2039.8,2039.4,0.71247639]
[1773303239443,1.09738177,2039.7,2039.4,0.71247639]
[1773303239908,1.09738177,2039.8,2039.4,0.71247639]
[1773303240238,0.002,2040.1,2039.5,0.71191946]
[1773303240431,1.09938177,2040.1,2039.5,0.71191946]
[1773303240608,0.002,2040.1,2039.7,0.71136934]
[1773303240808,0.002,2040.2,2040.0,0.70936934]
[1773303241236,0.002,2040.2,2040.1,0.70936934]
[1773303241437,0.34627326,2040.4,2040.0,1.89348059]
[1773303241639,0.002,2040.6,2040.1,0.70882283]
[1773303241821,0.002,2040.6,2040.3,0.70882283]
[1773303243850,0.002,2040.6,2040.4,1.93301424]
[1773303244548,0.002,2040.6,2040.4,1.22524995]
[1773303244750,0.002,2040.6,2040.5,0.70723665]
[1773303245257,1e-08,2040.8,2040.5,0.70723665]
[1773303246049,1e-08,2040.8,2040.5,1.93239424]
[1773303246553,1e-08,2040.8,2040.6,0.70619907]
[1773303248460,0.002,2041.0,2040.7,0.70568828]
[1773303249449,1.09938177,2041.0,2040.6,1.92975744]
[1773303249655,1.09938177,2041.0,2040.7,0.70468334]
[1773303249656,0.002,2041.0,2040.7,0.70468334]
[1773303249958,1.09938177,2041.0,2040.7,0.70468334]
[1773303250265,1.09938177,2041.0,2040.6,1.92975744]
[1773303250424,0.002,2041.0,2040.7,0.70468334]
[1773303250919,1.09938177,2041.0,2040.7,0.70468334]
[1773303253049,0.002,2041.1,2040.8,0.70121964]
[1773303253355,0.12849999,2041.2,2040.9,0.70121964]
[1773303253554,1.09738177,2041.2,2040.9,0.70121964]
[1773303253754,1.09738177,2041.2,2040.8,0.70074141]
[1773303253961,1.09738177,2041.2,2040.5,0.70074141]
[1773303254329,1.09738177,2041.2,2040.6,0.70074141]
[1773303254528,0.002,2040.8,2040.6,0.70074141]
[1773303254826,1.09938177,2041.3,2040.8,0.6999078]
[1773303255037,1.09938177,2041.3,2040.9,0.6999078]
[1773303255251,2.32409331,2041.3,2040.9,0.6999078]
[1773303255629,0.002,2041.0,2040.9,0.6999078]
[1773303256665,0.002,2041.3,2040.9,0.6999078]
[1773303256869,0.002,2041.6,2041.1,0.72926163]
[1773303256870,1.09938177,2041.6,2041.1,0.72926163]
[1773303257364,1.09938177,2041.6,2041.2,1.95403137]
[1773303257527,0.002,2041.6,2041.3,0.72847896]
[1773303258129,1.22657649,2041.6,2041.3,0.72847896]
[1773303258341,1.09738177,2041.5,2041.1,1.95326473]
[1773303258543,1.09738177,2041.5,2041.1,1.95330133]
[1773303260639,0.002,2041.6,2041.3,0.72543782]
[1773303261462,0.002,2041.6,2041.3,1.9501175]
[1773303261637,0.002,2041.6,2041.3,0.72543782]
[1773303261840,1.13367559,2041.6,2041.1,1.94949097]
[1773303262062,1.13167559,2041.5,2040.9,1.94964889]
[1773303262829,1.13167559,2041.4,2040.7,1.94901022]
[1773303263662,1.13167559,2041.2,2040.7,0.72397102]
[1773303263846,1.13167559,2041.2,2040.6,1.22509029]
[1773303264163,1.13167559,2041.2,2040.6,1.94834148]
[1773303265669,1.13167559,2041.1,2040.6,1.94834148]
[1773303267150,1.13167559,2041.1,2040.6,1.22509029]
[1773303268646,1.13167559,2040.9,2040.5,0.001]
[1773303269371,1.13167559,2040.9,2040.8,0.001]
[1773303275450,1.13167559,2040.8,2040.3,0.001]
[1773303276576,1.13167559,2040.8,2040.3,1.22630333]
[1773303278280,2.35669916,2040.8,2040.3,1.22630333]
[1773303278479,1.13167559,2040.6,2040.1,0.71349612]
[1773303278666,1.13167559,2040.6,2040.0,0.71449612]
[1773303278983,1.13167559,2040.6,2040.0,1.9399713]
[1773303281175,1.2251899,2040.5,2040.0,1.9399713]
[1773303281371,1.13167559,2040.4,2040.0,1.9399713]
[1773303283281,1.13167559,2040.4,2040.0,1.93997909]
[1773303285286,0.66705509,2040.3,2040.0,0.001]
[1773303285450,1.05113648,2040.2,2040.0,0.001]
[1773303290691,1.22526994,2040.4,2040.0,0.001]
[1773303290895,1.14034699,2040.3,2040.0,0.001]
[1773303291084,1.14034699,2040.3,2040.0,0.70682214]
[1773303291895,1.14034699,2040.5,2040.0,0.70682214]
[1773303292063,1.14034699,2040.5,2040.1,0.70531624]
[1773303292475,1.14034699,2040.5,2040.2,1.93018754]
[1773303292664,1.14034699,2040.6,2040.3,0.70481748]
[1773303292877,2.83834699,2040.8,2040.3,0.70481748]
[1773303293259,1.14034699,2040.8,2040.3,0.70481748]
[1773303294696,2.36535918,2040.8,2040.4,0.70383881]
[1773303294884,1.14034699,2040.8,2040.4,0.70383881]
[1773303295287,1.14034699,2040.8,2040.4,0.65383881]
[1773303296788,1.14034699,2040.8,2040.3,0.65295699]
[1773303297508,1.14034699,2040.8,2040.2,1.22534476]
[1773303297824,1.14034699,2040.8,2040.2,1.87884656]
[1773303298207,1.14234699,2040.6,2040.2,1.87884656]
[1773303298377,1.14234699,2040.6,2040.2,1.87883713]
[1773303299990,1.14234699,2040.6,2040.2,0.653523]
[1773303300510,1.14234699,2040.6,2040.2,1.87886683]
[1773303300714,1.14234699,2040.6,2040.2,0.653523]
[1773303300915,1.14234699,2040.6,2040.0,0.001]
[1773303300916,1.14034699,2040.3,2040.0,0.001]
[1773303301388,1.14034699,2040.3,2040.0,0.65225193]
[1773303301708,1.14034699,2040.5,2040.0,0.65225193]
[1773303301891,1.14234699,2040.6,2040.2,0.6508356]
[1773303303108,1.14234699,2040.6,2040.2,1.87619977]
[1773303303296,1.14234699,2040.6,2040.2,1.22536417]
[1773303303505,1.14234699,2040.6,2040.3,0.65042669]
[1773303305321,1.14234699,2040.6,2040.3,1.87570013]
[1773303306593,1.14234699,2040.6,2040.2,1.8741581]
[1773303307319,1.14234699,2040.6,2040.0,0.001]
[1773303307320,0.66705509,2040.4,2040.0,0.001]
[1773303307493,1.14034699,2040.3,2040.0,0.001]
[1773303309217,1.14034699,2040.3,2039.7,0.001]
[1773303309423,1.14034699,2040.1,2039.7,0.001]
[1773303310720,1.14034699,2040.0,2039.7,0.001]
[1773303311296,1.14034699,2039.8,2039.7,0.001]
[1773303312324,1.14034699,2040.1,2039.7,0.64895754]
[1773303312495,1.22534989,2040.3,2039.8,0.74857114]
[1773303312496,1.14034699,2040.3,2039.8,0.74857114]
[1773303313406,1.14034699,2040.3,2039.9,1.9738387]
[1773303313723,0.002,2040.4,2040.0,0.74828843]
[1773303314526,1.14234699,2040.4,2040.0,0.74828843]
[1773303314907,1.14034699,2040.3,2040.0,0.74828843]
[1773303315415,1.14034699,2040.3,2039.9,1.22555027]
[1773303315615,1.14034699,2040.3,2039.9,1.97327689]
[1773303318227,1.14034699,2040.3,2039.7,0.001]
[1773303318228,1.14034699,2040.3,2040.0,0.74717751]
[1773303319090,1.14034699,2040.2,2039.7,0.74790835]
[1773303319296,2.36765488,2040.4,2039.7,0.74790835]
[1773303319496,1.22730789,2040.4,2039.7,0.74790835]
[1773303319720,1.14034699,2040.3,2039.7,0.74790835]
[1773303322424,1.14034699,2040.3,2039.9,0.74585546]
[1773303324425,1.14034699,2040.3,2039.9,1.97239426]
[1773303324927,1.10982913,2040.4,2040.0,0.74512959]
[1773303326341,1.10782913,2040.3,2040.0,0.74512959]
[1773303326505,1.10782913,2040.3,2040.0,1.97058221]
[1773303327338,0.002,2040.4,2040.0,1.22545262]
[1773303327540,0.002,2040.4,2040.1,0.74465604]
[1773303328740,0.002,2040.4,2040.3,0.74418138]
[1773303331037,0.002,2040.4,2040.1,1.96912304]
[1773303331233,1.10982913,2040.4,2040.1,1.96912304]
[1773303334054,0.002,2040.4,2040.1,1.96912304]
[1773303334233,0.002,2040.4,2040.2,0.74306188]
[1773303335245,0.002,2040.4,2040.2,1.96839104]
[1773303335424,1.10982913,2040.4,2040.1,1.22539289]
[1773303335748,1.10982913,2040.4,2040.0,1.96831322]
[1773303335940,1.10982913,2040.4,2040.0,0.74283946]
[1773303336146,1.10982913,2040.4,2039.9,0.001]
[1773303337142,1.10782913,2040.3,2039.9,0.001]
[1773303339234,1.10782913,2040.3,2039.9,1.22655027]
[1773303339952,1.10782913,2040.2,2039.9,0.001]
[1773303342752,1.04681503,2040.1,2039.9,0.001]
[1773303343639,1.04681503,2040.1,2039.6,0.001]
[1773303344625,1.04681503,2039.9,2039.6,0.001]
[1773303345027,1.04681503,2040.1,2039.6,0.74261718]
[1773303345737,2.27215421,2040.3,2039.7,0.74142627]
[1773303345932,2.27213738,2040.3,2039.7,0.74142627]
[1773303346152,1.04681503,2040.2,2039.7,0.74142627]
[1773303346757,1.04681503,2040.2,2039.8,1.22561035]
[1773303348155,1.04681503,2040.1,2039.7,1.9670485]
[1773303349953,1.04681503,2040.2,2039.8,0.74068857]
[1773303351966,1.04681503,2040.2,2039.8,1.9662449]
[1773303352762,1.04681503,2040.2,2039.9,0.74000789]
[1773303353061,1.04681503,2040.2,2039.8,1.22555633]
[1773303353249,1.04681503,2040.2,2039.8,1.96556422]
[1773303353452,1.04681503,2040.2,2039.9,0.001]
[1773303354133,0.002,2040.1,2039.9,0.001]
[1773303355754,0.002,2040.1,2039.9,0.74049527]
[1773303355966,1.04088604,2040.4,2040.1,0.73749527]
[1773303356161,1.04088604,2040.4,2040.1,1.9629234]
[1773303356538,1.04088604,2040.4,2040.1,0.73749527]
[1773303357143,1.04088604,2040.4,2040.0,1.96281045]
[1773303360780,1.03888604,2040.3,2040.0,0.73732732]
[1773303360975,1.03888604,2040.3,2039.9,1.96319886]
[1773303361547,1.03888604,2040.3,2039.9,0.001]
[1773303361774,1.03888604,2040.3,2039.7,0.001]
[1773303362092,1.03888604,2039.8,2039.4,0.001]
[1773303362694,1.03888604,2039.8,2039.4,0.002]
[1773303364256,1.03888604,2039.7,2039.4,0.002]
[1773303364486,0.66752935,2040.2,2039.4,0.002]
[1773303364487,1.04088604,2040.4,2039.7,0.73707675]
[1773303364651,0.002,2040.4,2040.1,1.4046061]
[1773303364850,1.04088604,2040.6,2040.1,1.4046061]
[1773303365085,1.04088604,2040.6,2040.2,0.001]
[1773303365282,1.04088604,2040.6,2040.3,0.001]
[1773303365451,1.04088604,2040.6,2039.8,0.73707675]
[1773303365452,1.04088604,2040.6,2039.9,0.66752935]
[1773303365651,1.04088604,2040.6,2039.9,1.40448058]
[1773303365967,1.04088604,2040.6,2040.0,0.73695123]
[1773303366577,1.04088604,2040.6,2040.3,0.66752935]
[1773303366899,1.04088604,2040.6,2040.2,0.73682872]
[1773303367550,1.04088604,2040.6,2040.3,0.001]
[1773303367781,1.04088604,2040.6,2040.0,1.96213678]
[1773303367782,1.03888604,2040.5,2040.1,0.001]
[1773303367977,0.66952935,2040.9,2040.1,0.001]
[1773303367978,0.001,2041.1,2040.6,0.73669283]
[1773303368177,0.001,2041.1,2040.8,0.66752935]
[1773303368481,1.03988604,2041.1,2040.6,2.62930934]
[1773303369355,0.001,2041.1,2040.7,0.73656262]
[1773303370682,0.001,2041.1,2040.8,1.2250098]
[1773303371099,0.001,2041.1,2040.8,1.96131015]
[1773303371463,0.001,2041.1,2040.9,0.73630035]
[1773303372073,6.59366416,2041.8,2040.8,1.2250098]
[1773303372074,1.696,2041.8,2040.8,1.2250098]
[1773303372399,1.03888604,2042.5,2041.7,0.73618517]
[1773303372764,1.03888604,2042.4,2041.8,1.22440983]
[1773303375291,1.22400074,2042.5,2041.7,1.96061983]
[1773303375292,1.03888604,2042.3,2041.7,1.96061983]
[1773303375496,1.03888604,2042.3,2041.7,1.96063418]
[1773303378000,1.03888604,2042.3,2041.5,0.73446063]
[1773303378169,1.03888604,2042.3,2041.2,1.66736389]
[1773303378170,1.03888604,2042.1,2041.2,0.73446063]
[1773303379303,1.03888604,2042.1,2041.3,1.22470974]
[1773303379469,1.03888604,2042.1,2041.3,1.95847259]
[1773303379784,1.03888604,2042.1,2041.4,0.73376285]
[1773303381407,1.03888604,2042.1,2041.6,0.73307755]
[1773303383499,1.03888604,2042.1,2041.6,1.95755651]
[1773303383699,1.03888604,2042.1,2041.6,1.22447896]
[1773303384795,1.04600278,2042.5,2041.7,0.7317802]
[1773303385671,1.04600278,2042.4,2041.7,0.7317802]
[1773303385875,2.05855757,2042.9,2041.7,0.7317802]
[1773303385876,2.62338821,2044.1,2042.4,0.72945723]
[1773303386201,2.62338821,2044.1,2042.9,0.72945723]
[1773303386202,1.04600278,2043.9,2042.9,0.72945723]
[1773303387693,2.26921444,2043.8,2043.0,1.22369065]
[1773303388204,1.04600278,2043.8,2043.2,0.7288063]
[1773303388510,1.04600278,2044.0,2043.3,2.39209206]
[1773303389173,0.36029231,2044.6,2043.0,2.88697641]
[1773303389174,1.04600278,2045.8,2044.0,1.25361533]
[1773303389374,1.04600278,2045.8,2044.7,2.39177569]
[1773303389610,1.04600278,2045.7,2044.9,1.22255367]
[1773303389779,1.04600278,2045.7,2044.7,0.72848993]
[1773303389780,1.04600278,2045.7,2044.7,1.95113318]
[1773303389984,1.04600278,2045.7,2044.6,1.894]
[1773303390302,1.04600278,2045.6,2044.4,3.84599911]
[1773303390510,1.04600278,2045.6,2044.4,1.95099911]
[1773303390726,8.21463486,2046.0,2044.4,1.95099911]
[1773303390727,0.35096232,2046.6,2045.6,0.9052917]
[1773303390872,3.89916637,2046.5,2046.0,1.66328576]
[1773303391072,3.89916637,2046.5,2045.8,1.66328576]
[1773303391276,3.89916637,2046.4,2045.8,1.66328576]
[1773303391476,0.35096232,2046.6,2045.8,1.66328576]
[1773303391477,3.89916637,2046.5,2045.8,1.66328576]
[1773303391903,1.04600278,2046.3,2045.0,3.69130617]
[1773303392102,1.04600278,2046.3,2045.2,1.66328576]
[1773303392315,3.89916637,2046.2,2045.5,1.07162646]
[1773303392498,0.35096232,2046.6,2046.1,1.66328576]
[1773303392698,3.89916637,2046.5,2046.1,1.66328576]
[1773303392891,3.36093526,2046.5,2046.1,2.25412632]
[1773303393095,1.04600278,2047.5,2046.4,4.98985728]
[1773303393298,1.04600278,2047.5,2046.5,3.56128576]
[1773303393494,4.65249745,2047.4,2046.5,3.56128576]
[1773303393695,1.04600278,2047.4,2046.3,2.22445502]
[1773303393984,2.88423054,2047.6,2046.1,1.22183666]
[1773303393985,1.04600278,2047.2,2046.1,1.22183666]
[1773303394182,1.04600278,2047.2,2046.5,1.66328576]
[1773303394427,3.60649467,2047.1,2046.5,1.66328576]
[1773303394577,3.60649467,2047.1,2046.7,1.66328576]
[1773303394783,1.04600278,2047.6,2046.5,1.66328576]
[1773303395004,3.60649467,2047.5,2046.5,1.66328576]
[1773303395388,4.65249745,2047.4,2046.3,2.27840935]
[1773303395594,1.04600278,2047.3,2046.5,1.66328576]
[1773303395795,1.04600278,2047.3,2046.6,1.22153816]
[1773303396290,1.04600278,2047.1,2046.3,1.66328576]
[1773303396517,1.04600278,2047.6,2046.7,1.66328576]
[1773303397408,3.60649467,2047.5,2046.7,1.66328576]
[1773303398098,3.60649467,2047.5,2046.8,1.2214188]
[1773303398298,1.04600278,2047.6,2046.8,1.2214188]
[1773303399017,1.04600278,2047.6,2046.1,2.88512242]
[1773303399018,1.04600278,2047.4,2046.1,2.88512242]
[1773303399217,1.04800278,2047.4,2046.1,2.88512242]
[1773303399426,1.04800278,2047.4,2046.7,0.001]
[1773303399622,4.65249745,2047.3,2046.7,0.001]
[1773303399822,3.60649467,2047.3,2046.7,0.001]
[1773303400023,3.60649467,2047.2,2046.8,1.2214188]
[1773303400318,1.04600278,2047.2,2046.7,1.22244823]
[1773303400816,3.60649467,2047.1,2046.7,0.001]
[1773303401018,3.60649467,2047.1,2046.7,1.22247561]
[1773303401997,3.60649467,2047.1,2046.7,0.001]
[1773303402205,3.60649467,2047.0,2046.7,0.001]
[1773303402409,4.83127923,2047.1,2046.4,1.22265754]
[1773303402603,1.22478456,2047.1,2046.4,1.22265754]
[1773303402824,1.22478456,2047.1,2046.4,0.001]
[1773303403120,1.22478456,2046.9,2046.4,0.001]
[1773303403526,1.66328576,2047.3,2046.4,0.001]
[1773303403527,4.83127923,2046.8,2046.4,0.001]
[1773303403821,1.22478456,2046.8,2046.2,1.22171939]
[1773303404021,1.22478456,2047.1,2046.2,1.22171939]
[1773303404222,1.22478456,2047.0,2046.2,1.22171939]
[1773303404596,3.60649467,2046.9,2046.2,1.22171939]
[1773303404798,3.60649467,2046.9,2046.3,1.66328576]
[1773303405000,3.60649467,2046.9,2046.2,1.22171939]
[1773303405226,3.60649467,2046.9,2046.3,1.66328576]
[1773303406031,3.60649467,2046.9,2046.4,1.22165754]
[1773303406325,3.60649467,2046.9,2046.5,1.66328576]
[1773303406825,3.60649467,2046.9,2046.4,1.22165754]
[1773303408838,3.60649467,2046.8,2046.3,1.22167223]
[1773303409022,3.60649467,2047.0,2046.3,1.22167223]
[1773303409523,4.83127923,2047.0,2046.3,1.22167223]
[1773303409723,3.60649467,2046.9,2046.3,1.22167223]
[1773303409922,1.22478456,2046.8,2046.1,1.22183246]
[1773303410228,1.22478456,2046.7,2045.9,2.88524186]
[1773303410409,4.83127923,2046.7,2046.1,1.66328576]
[1773303410916,0.002,2047.4,2045.9,1.2219561]
[1773303410917,4.79833644,2046.6,2045.9,2.88524186]
[1773303411129,1.19184177,2046.6,2045.9,2.88524186]
[1773303411529,1.19184177,2046.6,2045.9,4.80924186]
[1773303411738,3.60649467,2046.5,2045.9,4.80924186]
[1773303412048,1.19184177,2046.6,2045.9,4.80924186]
[1773303412248,3.60649467,2046.5,2045.9,4.80924186]
[1773303412627,1.19184177,2046.9,2046.4,0.001]
[1773303414718,1.19184177,2046.9,2046.4,1.22265754]
[1773303415069,1.19184177,2046.9,2046.4,0.001]
[1773303415357,1.19184177,2046.9,2046.2,1.22173192]
[1773303415581,1.19184177,2046.7,2045.4,2.33405283]
[1773303415858,1.19184177,2046.7,2045.5,1.22219506]
[1773303416648,1.19184177,2046.3,2045.2,4.88936583]
[1773303416859,1.19184177,2046.3,2045.3,1.22231457]
[1773303418853,1.19184177,2046.2,2045.2,4.88936583]
[1773303420620,1.19184177,2046.5,2046.0,1.66328576]
[1773303420944,1.19184177,2047.2,2046.1,1.22183666]
[1773303422916,1.19184177,2047.0,2046.0,1.929]
[1773303423143,1.19184177,2047.0,2045.9,1.2219561]
[1773303423348,1.19184177,2047.0,2046.4,1.66328576]
[1773303424123,1.19384177,2047.3,2046.4,1.66328576]
[1773303425148,1.19384177,2047.3,2046.5,1.22159784]
[1773303426454,1.19184177,2047.2,2046.4,1.22161361]
[1773303428024,2.85512753,2047.1,2046.1,1.22179371]
[1773303428351,1.19184177,2047.0,2046.1,1.22179371]
[1773303428553,1.19184177,2047.0,2046.1,1.66328576]
[1773303429346,1.19184177,2046.9,2046.2,1.22177695]
[1773303429550,1.19184177,2046.9,2046.0,1.22186399]
[1773303429859,1.19184177,2046.9,2045.8,4.88787888]
[1773303429860,1.19184177,2046.8,2045.8,4.88787888]
[1773303430237,1.19184177,2046.8,2045.9,1.66328576]
[1773303432033,1.19184177,2046.8,2046.0,1.22189638]
[1773303436930,1.19184177,2046.7,2045.7,1.96352317]
[1773303437135,1.19184177,2046.7,2045.7,2.88533602]
[1773303437325,1.19184177,2046.7,2045.9,2.87413813]
[1773303437532,1.19184177,2047.2,2046.1,2.87413813]
[1773303437727,1.19184177,2047.2,2046.5,1.66328576]
[1773303438570,0.002,2047.3,2046.7,1.66328576]
[1773303438866,0.002,2047.5,2047.0,1.66328576]
[1773303439164,0.002,2047.5,2047.0,3.59228576]
[1773303439664,0.002,2047.6,2047.0,3.59228576]
[1773303439840,0.002,2047.6,2047.2,1.66328576]
[1773303440165,0.002,2047.6,2046.7,4.8856752]
[1773303440166,1.20137814,2047.5,2046.3,1.18887479]
[1773303440366,1.20137814,2047.5,2046.6,2.85216055]
[1773303440534,0.002,2047.6,2047.0,1.66328576]
[1773303440867,0.002,2047.6,2047.1,1.2212398]
[1773303441161,1.20137814,2048.2,2047.4,1.66328576]
[1773303442145,1.20137814,2048.2,2047.3,1.926]
[1773303442357,1.20137814,2048.2,2047.4,1.66328576]
[1773303442537,1.20137814,2048.2,2047.3,1.18887479]
[1773303442739,1.20137814,2048.2,2047.3,1.2211205]
[1773303442966,0.002,2047.5,2047.3,1.2211205]
[1773303444745,0.002,2047.5,2047.2,4.88471978]
[1773303444938,1.20137814,2048.0,2047.2,6.54800554]
[1773303445138,1.20137814,2047.9,2047.2,4.88471978]
[1773303445347,1.20137814,2047.9,2047.2,6.81271978]
[1773303445550,1.66328576,2048.4,2047.4,1.66328576]
[1773303445551,1.20137814,2048.4,2047.4,1.66328576]
[1773303446851,2.42187474,2048.4,2047.5,1.22100122]
[1773303447552,1.20137814,2048.3,2047.5,3.15100122]
[1773303448573,1.20137814,2048.6,2047.8,1.66328576]
[1773303448774,1.20137814,2048.6,2047.9,1.22076273]
[1773303449271,2.42172578,2048.6,2047.9,1.22076273]
[1773303449509,1.20137814,2048.5,2047.9,1.22076273]
[1773303450061,1.20137814,2048.5,2047.8,1.22078501]
[1773303450664,1.20137814,2048.4,2047.5,1.22100122]
[1773303450947,1.20137814,2048.2,2047.5,1.22100122]
[1773303451364,1.20137814,2048.8,2047.6,1.65581476]
[1773303451676,1.20137814,2048.7,2047.6,1.65581476]
[1773303452171,1.20137814,2048.7,2047.6,2.84468955]
[1773303452375,1.20137814,2048.7,2047.8,2.84468955]
[1773303452582,1.20137814,2049.2,2048.2,1.65581476]
[1773303452959,2.42142596,2049.1,2048.3,1.22052433]
[1773303453160,0.34534643,2051.4,2048.7,1.18887479]
[1773303453360,1.6999292,2050.4,2049.2,1.18887479]
[1773303453590,1.20137814,2050.5,2048.8,1.18887479]
[1773303453591,1.20137814,2050.1,2048.8,1.18887479]
[1773303453902,1.20137814,2049.8,2048.5,1.65581476]
[1773303454202,1.20137814,2051.2,2048.9,1.18887479]
[1773303454355,1.20137814,2051.0,2049.1,1.18887479]
[1773303454550,1.20137814,2050.8,2049.2,1.923]
[1773303454856,1.20137814,2050.8,2049.3,1.18887479]
[1773303455058,2.42047405,2050.7,2049.4,2.40874402]
[1773303455259,1.20137814,2050.7,2049.6,1.18887479]
[1773303455495,1.20137814,2050.7,2049.7,3.11387479]
[1773303455782,1.20337814,2051.0,2049.9,1.18887479]
[1773303455988,2.42230985,2051.0,2050.0,1.927]
[1773303456153,2.4223508,2051.0,2050.0,1.927]
[1773303456486,0.002,2051.0,2050.0,3.11587479]
[1773303456859,2.42230373,2051.0,2050.1,1.929]
[1773303457073,2.42230373,2051.0,2050.1,3.14841588]
[1773303457275,2.42230219,2051.0,2050.0,2.40834351]
[1773303457600,2.42230155,2051.0,2050.1,1.93]